[Event "IMSA Blitz Women 2019"]
[Site "Hengshui"]
[Date "2019.05.18"]
[Round "7.2"]
[White "Ushenina, Anna"]
[Black "Bodnaruk, Anastasia"]
[Result "0-1"]
[ECO "A49"]
[WhiteElo "2442"]
[BlackElo "2431"]
[Annotator "NA RC"]
[PlyCount "86"]
[EventDate "2019.05.17"]
[EventType "blitz"]
[EventCountry "CHN"]
[SourceTitle "playchess.com"]
[Source "ChessBase"]
[SourceQuality "1"]
[TimeControl "180+2"]

1. d4 {[%emt 0:00:00]} Nf6 {[%emt 0:00:00]} 2. Nf3 {[%emt 0:00:00]} g6 {[%emt 0:00:00]} 3. g3 {[%emt 0:00:01]} Bg7 {[%emt 0:00:00]} 4. Bg2 {[%emt 0:00:02]} O-O {[%emt 0:00:01]} 5. O-O {[%emt 0:00:02]} d6 {[%emt 0:00:01]} 6. c4 {[%emt 0:00:01]} Nc6 {[%emt 0:00:01]} 7. d5 {[%emt 0:00:02]} Na5 {[%emt 0:00:06]} 8. Nfd2 {[%emt 0:00:01]} c5 {[%emt 0:00:01]} 9. a3 {[%emt 0:00:03]} b6 {[%emt 0:00:19]} 10. b4 {[%emt 0:00:02]} Nb7 {[%emt 0:00:02]} 11. Bb2 {[%emt 0:00:02]} cxb4 {[%emt 0:00:21]} 12. axb4 {[%emt 0:00:02]} a5 {[%emt 0:00:01]} 13. Bd4 {[%emt 0:00:34]} Bd7 {[%emt 0:00:19]} 14. Qb3 {[%emt 0:00:03]} axb4 {[%emt 0:00:20]} 15. Rxa8 {[%emt 0:00:08]} Qxa8 {[%emt 0:00:01]} 16. Qxb4 {[%emt 0:00:08]} Nc5 {[%emt 0:00:01]} 17. Nc3 {[%emt 0:00:17]} Ng4 {[%emt 0:00:26]} 18. Bxg7 {[%emt 0:00:06]} Kxg7 {[%emt 0:00:01]} 19. h3 {[%emt 0:00:12]} Nf6 {[%emt 0:00:01]} 20. Rb1 {[%emt 0:00:11]} Qa5 {[%emt 0:00:08]} 21. Kh2 {[%emt 0:00:22]} Ra8 {[%emt 0:00:07]} 22. Nde4 {[%emt 0:00:05]} Bf5 {[%emt 0:00:25]} 23. Qb2 {[%emt 0:00:10]} Qa3 {[%emt 0:00:07]} 24. f3 {[%emt 0:00:23]} Bxe4 {[%emt 0:00:13]} 25. fxe4 {[%emt 0:00:01]} Qxb2 {[%emt 0:00:05]} 26. Rxb2 {[%emt 0:00:01]} Nfd7 {[%emt 0:00:03]} 27. Rb4 {[%emt 0:00:22]} Ra3 {[%emt 0:00:02]} 28. Nb5 {[%emt 0:00:02]} Re3 {[%emt 0:00:04]} 29. Na7 {[%emt 0:00:04]} Rxe2 {[%emt 0:00:06]} 30. Kg1 {[%emt 0:00:03]} Nxe4 {[%emt 0:00:14]} 31. g4 {[%emt 0:00:01]} Nec5 {[%emt 0:00:06]} 32. Nc8 {[%emt 0:00:03]} Nd3 {[%emt 0:00:04]} 33. Rb3 {[%emt 0:00:04]} Nf4 {[%emt 0:00:02]} 34. Bf1 {[%emt 0:00:01]} Re1 {[%emt 0:00:04]} 35. Kf2 {[%emt 0:00:04]} Rc1 {[%emt 0:00:01]} 36. Nxe7 {[%emt 0:00:03]} Ne5 {[%emt 0:00:06]} 37. Rxb6 {[%emt 0:00:04]} Rc2+ {[%emt 0:00:07]} 38. Ke3 {[%emt 0:00:03]} Nxh3 {[%emt 0:00:05]} 39. Bxh3 {[%emt 0:00:02]} Rc3+ {[%emt 0:00:01]} 40. Ke2 {[%emt 0:00:05]} Rxh3 {[%emt 0:00:02]} 41. Rxd6 {[%emt 0:00:05]} Rh2+ {[%emt 0:00:02]} 42. Ke1 {[%emt 0:00:03]} Nxc4 43. g5 {[%emt 0:00:03]} Nxd6 {[%emt 0:00:03]} 0-1

[Event "IMSA Blitz Women 2019"]
[Site "Hengshui"]
[Date "2019.05.18"]
[Round "7.2"]
[White "Krush, Irina"]
[Black "Dzagnidze, Nana"]
[Result "0-1"]
[ECO "E32"]
[WhiteElo "2422"]
[BlackElo "2510"]
[Annotator "RC"]
[PlyCount "67"]
[EventDate "2019.05.17"]
[EventType "blitz"]
[EventCountry "CHN"]
[SourceTitle "playchess.com"]
[Source "ChessBase"]
[SourceQuality "1"]
[TimeControl "180+2"]

1. d4 {[%emt 0:00:00]} Nf6 {[%emt 0:00:00]} 2. c4 {[%emt 0:00:01]} e6 {[%emt 0:00:01]} 3. Nc3 {[%emt 0:00:01]} Bb4 {[%emt 0:00:02]} 4. Qc2 {[%emt 0:00:01]} O-O {[%emt 0:00:03]} 5. e4 {[%emt 0:00:01]} d6 {[%emt 0:00:13]} 6. a3 {[%emt 0:00:02]} Bxc3+ {[%emt 0:00:02]} 7. bxc3 {[%emt 0:00:01]} e5 {[%emt 0:00:04]} 8. Bd3 {[%emt 0:00:02]} Nc6 {[%emt 0:00:14]} 9. Ne2 {[%emt 0:00:03]} Nh5 {[%emt 0:00:38]} 10. O-O {[%emt 0:00:08]} Bd7 {[%emt 0:00:19]} 11. f4 {[%emt 0:00:09]} exf4 {[%emt 0:00:16]} 12. Nxf4 {[%emt 0:00:01]} Nxf4 {[%emt 0:00:04]} 13. Bxf4 {[%emt 0:00:02]} Qh4 {[%emt 0:00:15]} 14. Bg3 {[%emt 0:00:17]} Qh6 {[%emt 0:00:02]} 15. Rf4 {[%emt 0:00:03]} Rae8 {[%emt 0:00:12]} 16. Raf1 {[%emt 0:00:23]} Ne7 {[%emt 0:00:19]} 17. Qf2 {[%emt 0:01:01]} Qh5 {[%emt 0:00:26]} 18. Rh4 {[%emt 0:00:20]} Qa5 {[%emt 0:00:12]} 19. Rf4 {[%emt 0:00:21]} f6 {[%emt 0:00:04]} 20. Qc2 {[%emt 0:00:08]} Ng6 {[%emt 0:00:04]} 21. R4f2 {[%emt 0:00:01]} Qg5 {[%emt 0:00:02]} 22. c5 {[%emt 0:00:07]} dxc5 {[%emt 0:00:03]} 23. Bxc7 {[%emt 0:00:02]} cxd4 {[%emt 0:00:02]} 24. cxd4 {[%emt 0:00:02]} Kh8 {[%emt 0:00:00]} 25. Bd6 {[%emt 0:00:04]} Rg8 {[%emt 0:00:05]} 26. Qc7 {[%emt 0:00:10]} Bc6 {[%emt 0:00:03]} 27. d5 {[%emt 0:00:03]} Rc8 {[%emt 0:00:01]} 28. Qf7 {[%emt 0:00:05]} Ba4 {[%emt 0:00:06]} 29. Qxb7 {[%emt 0:00:05]} Ne5 {[%emt 0:00:01]} 30. Be2 {[%emt 0:00:05]} Qe3 {[%emt 0:00:03]} 31. Bxe5 {[%emt 0:00:06]} fxe5 {[%emt 0:00:01]} 32. Kh1 {[%emt 0:00:01]} Bc2 {[%emt 0:00:01]} 33. Qxc8 {[%emt 0:00:05]} Bxe4 {[%emt 0:00:03]} 34. Qxg8+ {[%emt 0:00:02]} 0-1

[Event "IMSA Blitz Women 2019"]
[Site "Hengshui"]
[Date "2019.05.18"]
[Round "8.1"]
[White "Kosteniuk, Alexandra"]
[Black "Gunina, Valentina"]
[Result "1-0"]
[ECO "B10"]
[WhiteElo "2546"]
[BlackElo "2506"]
[Annotator "ChessBase"]
[PlyCount "59"]
[EventDate "2019.05.17"]
[EventType "blitz"]
[EventCountry "CHN"]
[SourceTitle "playchess.com"]
[Source "ChessBase"]
[SourceQuality "1"]
[TimeControl "180+2"]

1. e4 {[%emt 0:00:00]} c6 {[%emt 0:00:00]} 2. c4 {[%emt 0:00:00]} d5 {[%emt 0:00:00]} 3. cxd5 {[%emt 0:00:01]} cxd5 {[%emt 0:00:01]} 4. exd5 {[%emt 0:00:01]} Nf6 {[%emt 0:00:01]} 5. Nc3 {[%emt 0:00:01]} g6 {[%emt 0:00:03]} 6. Bc4 {[%emt 0:00:01]} Bg7 {[%emt 0:00:02]} 7. Nf3 {[%emt 0:00:03]} O-O {[%emt 0:00:02]} 8. O-O {[%emt 0:00:01]} a6 {[%emt 0:00:02]} 9. a4 {[%emt 0:00:03]} Nbd7 {[%emt 0:00:06]} 10. a5 {[%emt 0:00:05]} b5 {[%emt 0:00:04]} 11. axb6 {[%emt 0:00:22]} Nxb6 {[%emt 0:00:01]} 12. d3 {[%emt 0:00:19]} Nbxd5 {[%emt 0:00:19]} 13. Nxd5 {[%emt 0:00:02]} Nxd5 {[%emt 0:00:01]} 14. Qb3 {[%emt 0:00:01]} Nb6 {[%emt 0:00:27]} 15. Be3 {[%emt 0:00:09]} Nxc4 {[%emt 0:00:07]} 16. dxc4 {[%emt 0:00:01]} Be6 {[%emt 0:00:03]} 17. Ng5 {[%emt 0:00:08]} Bf5 {[%emt 0:00:21]} 18. Qa3 {[%emt 0:00:44]} Qc7 {[%emt 0:00:12]} 19. Rac1 {[%emt 0:00:06]} a5 {[%emt 0:00:14]} 20. Rfd1 {[%emt 0:00:07]} Rab8 {[%emt 0:00:11]} 21. b3 {[%emt 0:00:04]} Rfc8 {[%emt 0:00:15]} 22. h3 {[%emt 0:00:04]} h6 {[%emt 0:00:08]} 23. Nf3 {[%emt 0:00:02]} Qb7 {[%emt 0:00:04]} 24. Nd4 {[%emt 0:00:06]} Be4 {[%emt 0:00:06]} 25. f3 {[%emt 0:00:03]} Bc6 {[%emt 0:00:33]} 26. Qxa5 {[%emt 0:00:01]} Ra8 {[%emt 0:00:06]} 27. Qe1 {[%emt 0:00:04]} Be8 {[%emt 0:00:07]} 28. b4 {[%emt 0:00:04]} e5 {[%emt 0:00:01]} 29. Nb3 {[%emt 0:00:03]} e4 {[%emt 0:00:12]} 30. Nc5 {[%emt 0:00:03]} 1-0

[Event "IMSA Blitz Women 2019"]
[Site "Hengshui"]
[Date "2019.05.18"]
[Round "8.1"]
[White "Lei, Tingjie"]
[Black "Krush, Irina"]
[Result "1-0"]
[ECO "B60"]
[WhiteElo "2507"]
[BlackElo "2422"]
[Annotator "RC"]
[PlyCount "157"]
[EventDate "2019.05.17"]
[EventType "blitz"]
[EventCountry "CHN"]
[SourceTitle "playchess.com"]
[Source "ChessBase"]
[SourceQuality "1"]
[TimeControl "180+2"]

1. e4 {[%emt 0:00:00]} c5 {[%emt 0:00:00]} 2. Nf3 {[%emt 0:00:00]} d6 {[%emt 0:00:01]} 3. d4 {[%emt 0:00:01]} cxd4 {[%emt 0:00:01]} 4. Nxd4 {[%emt 0:00:02]} Nf6 {[%emt 0:00:01]} 5. Nc3 {[%emt 0:00:01]} Nc6 {[%emt 0:00:01]} 6. Bg5 {[%emt 0:00:03]} Qb6 {[%emt 0:00:01]} 7. Nb3 {[%emt 0:00:03]} g6 {[%emt 0:00:09]} 8. Qd2 {[%emt 0:00:12]} Be6 {[%emt 0:00:03]} 9. Bxf6 {[%emt 0:00:35]} exf6 {[%emt 0:00:02]} 10. O-O-O {[%emt 0:00:09]} O-O-O {[%emt 0:00:02]} 11. Kb1 {[%emt 0:00:05]} Kb8 {[%emt 0:00:02]} 12. f3 {[%emt 0:00:08]} Ne5 {[%emt 0:00:37]} 13. Nd5 {[%emt 0:00:03]} Bxd5 {[%emt 0:00:04]} 14. Qxd5 {[%emt 0:00:03]} h5 {[%emt 0:00:18]} 15. Be2 {[%emt 0:00:05]} Bh6 {[%emt 0:00:04]} 16. Nd4 {[%emt 0:00:25]} a6 {[%emt 0:00:05]} 17. g3 {[%emt 0:00:04]} Be3 {[%emt 0:00:14]} 18. f4 {[%emt 0:00:20]} Ng4 {[%emt 0:00:05]} 19. Bxg4 {[%emt 0:00:03]} hxg4 {[%emt 0:00:01]} 20. Nb3 {[%emt 0:00:10]} Qc7 {[%emt 0:00:13]} 21. Rd3 {[%emt 0:00:06]} Bb6 {[%emt 0:00:15]} 22. Nd2 {[%emt 0:00:04]} Ka7 {[%emt 0:00:13]} 23. a4 {[%emt 0:00:15]} Qe7 {[%emt 0:00:07]} 24. a5 {[%emt 0:00:07]} Bf2 {[%emt 0:00:05]} 25. Nc4 {[%emt 0:00:12]} Qc7 {[%emt 0:00:27]} 26. Nxd6 {[%emt 0:00:14]} Bc5 {[%emt 0:00:03]} 27. e5 {[%emt 0:00:04]} fxe5 {[%emt 0:00:11]} 28. fxe5 {[%emt 0:00:01]} Bxd6 {[%emt 0:00:09]} 29. exd6 {[%emt 0:00:02]} Qd7 {[%emt 0:00:03]} 30. Rf1 {[%emt 0:00:06]} f5 {[%emt 0:00:02]} 31. Rf2 {[%emt 0:00:02]} Rhe8 {[%emt 0:00:02]} 32. Rfd2 {[%emt 0:00:03]} Re6 {[%emt 0:00:02]} 33. Qc5+ {[%emt 0:00:02]} Kb8 {[%emt 0:00:01]} 34. Qc7+ {[%emt 0:00:01]} Ka8 {[%emt 0:00:04]} 35. Rb3 {[%emt 0:00:06]} Re1+ {[%emt 0:00:09]} 36. Ka2 {[%emt 0:00:00]} Qa4+ {[%emt 0:00:04]} 37. Ra3 {[%emt 0:00:01]} Qd7 {[%emt 0:00:05]} 38. Rdd3 {[%emt 0:00:03]} Re2 {[%emt 0:00:05]} 39. Rab3 {[%emt 0:00:05]} Qa4+ {[%emt 0:00:01]} 40. Ra3 {[%emt 0:00:01]} Qd7 {[%emt 0:00:02]} 41. c4 {[%emt 0:00:06]} Re6 {[%emt 0:00:04]} 42. c5 {[%emt 0:00:04]} Ree8 {[%emt 0:00:01]} 43. Qxd7 {[%emt 0:00:03]} Rxd7 {[%emt 0:00:01]} 44. Rab3 {[%emt 0:00:01]} Rc8 {[%emt 0:00:02]} 45. Rd5 {[%emt 0:00:01]} Rh8 {[%emt 0:00:02]} 46. Rd2 {[%emt 0:00:04]} Re8 {[%emt 0:00:01]} 47. Rc3 {[%emt 0:00:02]} Kb8 {[%emt 0:00:02]} 48. c6 {[%emt 0:00:01]} bxc6 {[%emt 0:00:01]} 49. Rxc6 {[%emt 0:00:01]} Kb7 {[%emt 0:00:01]} 50. Rdc2 {[%emt 0:00:01]} Red8 {[%emt 0:00:05]} 51. Rb6+ {[%emt 0:00:02]} Ka7 {[%emt 0:00:02]} 52. Rcc6 {[%emt 0:00:02]} Rh8 {[%emt 0:00:04]} 53. Rxa6+ {[%emt 0:00:02]} Kb7 {[%emt 0:00:01]} 54. Rab6+ {[%emt 0:00:01]} Ka7 {[%emt 0:00:01]} 55. Kb3 {[%emt 0:00:03]} Rxh2 {[%emt 0:00:03]} 56. Rc7+ {[%emt 0:00:00]} Rxc7 {[%emt 0:00:02]} 57. dxc7 {[%emt 0:00:02]} Rh8 {[%emt 0:00:02]} 58. Rxg6 {[%emt 0:00:02]} Kb7 {[%emt 0:00:01]} 59. Ka4 {[%emt 0:00:02]} Rf8 {[%emt 0:00:02]} 60. b4 {[%emt 0:00:02]} Kxc7 {[%emt 0:00:02]} 61. a6 {[%emt 0:00:01]} f4 {[%emt 0:00:03]} 62. gxf4 {[%emt 0:00:01]} Rxf4 {[%emt 0:00:01]} 63. Ka5 {[%emt 0:00:02]} Rf5+ {[%emt 0:00:05]} 64. b5 {[%emt 0:00:01]} Rh5 {[%emt 0:00:01]} 65. Rxg4 {[%emt 0:00:01]} Rh7 {[%emt 0:00:01]} 66. Rg6 {[%emt 0:00:01]} Kb8 {[%emt 0:00:01]} 67. Kb6 {[%emt 0:00:02]} Rh8 {[%emt 0:00:01]} 68. Kc6 {[%emt 0:00:01]} Rc8+ {[%emt 0:00:02]} 69. Kb6 {[%emt 0:00:02]} Ka8 {[%emt 0:00:01]} 70. Rg7 {[%emt 0:00:02]} Rb8+ {[%emt 0:00:02]} 71. Ka5 {[%emt 0:00:02]} Rh8 {[%emt 0:00:02]} 72. Rc7 {[%emt 0:00:05]} Rg8 {[%emt 0:00:02]} 73. b6 {[%emt 0:00:03]} Rg5+ {[%emt 0:00:03]} 74. Kb4 {[%emt 0:00:01]} Rg4+ {[%emt 0:00:02]} 75. Kb5 {[%emt 0:00:01]} Rg5+ {[%emt 0:00:01]} 76. Rc5 {[%emt 0:00:00]} Rg8 {[%emt 0:00:01]} 77. a7 {[%emt 0:00:03]} Rh8 {[%emt 0:00:05]} 78. Ka6 {[%emt 0:00:02]} Rf8 {[%emt 0:00:04]} 79. b7# {[%emt 0:00:01]} 1-0

[Event "IMSA Blitz Women 2019"]
[Site "Hengshui"]
[Date "2019.05.18"]
[Round "8.1"]
[White "Zhao, Xue"]
[Black "Bodnaruk, Anastasia"]
[Result "1/2-1/2"]
[ECO "A21"]
[WhiteElo "2485"]
[BlackElo "2431"]
[Annotator "RC"]
[PlyCount "150"]
[EventDate "2019.05.17"]
[EventType "blitz"]
[EventCountry "CHN"]
[SourceTitle "playchess.com"]
[Source "ChessBase"]
[SourceQuality "1"]
[TimeControl "180+2"]

1. c4 {[%emt 0:00:00]} e5 {[%emt 0:00:00]} 2. Nc3 {[%emt 0:00:02]} d6 {[%emt 0:00:00]} 3. d4 {[%emt 0:00:09]} exd4 {[%emt 0:00:01]} 4. Qxd4 {[%emt 0:00:02]} Nc6 {[%emt 0:00:02]} 5. Qd2 {[%emt 0:00:00]} g6 {[%emt 0:00:01]} 6. Nf3 {[%emt 0:00:02]} Bg7 {[%emt 0:00:01]} 7. b3 {[%emt 0:00:02]} Nge7 {[%emt 0:00:26]} 8. Bb2 {[%emt 0:00:04]} O-O {[%emt 0:00:02]} 9. g3 {[%emt 0:00:03]} Ne5 {[%emt 0:00:19]} 10. Nd4 {[%emt 0:00:13]} d5 {[%emt 0:00:16]} 11. cxd5 {[%emt 0:00:30]} Nxd5 {[%emt 0:00:01]} 12. Rd1 {[%emt 0:00:41]} Nxc3 {[%emt 0:00:10]} 13. Qxc3 {[%emt 0:00:50]} Qe7 {[%emt 0:00:20]} 14. Bg2 {[%emt 0:00:06]} c5 {[%emt 0:00:43]} 15. Nb5 {[%emt 0:00:17]} Bg4 {[%emt 0:00:10]} 16. Qe3 {[%emt 0:00:18]} Rad8 {[%emt 0:00:34]} 17. O-O {[%emt 0:00:04]} Bf5 {[%emt 0:00:14]} 18. Nc3 {[%emt 0:00:01]} Nc6 {[%emt 0:00:06]} 19. Qc1 {[%emt 0:00:03]} Qe6 {[%emt 0:00:04]} 20. e3 {[%emt 0:00:03]} Bh3 {[%emt 0:00:02]} 21. Na4 {[%emt 0:00:04]} b6 {[%emt 0:00:01]} 22. Rxd8 {[%emt 0:00:03]} Rxd8 {[%emt 0:00:01]} 23. Bxg7 {[%emt 0:00:02]} Kxg7 {[%emt 0:00:01]} 24. Qc3+ {[%emt 0:00:02]} f6 {[%emt 0:00:03]} 25. Nb2 {[%emt 0:00:02]} Ne5 {[%emt 0:00:01]} 26. Qc2 {[%emt 0:00:03]} Bxg2 {[%emt 0:00:03]} 27. Kxg2 {[%emt 0:00:01]} Qd5+ {[%emt 0:00:01]} 28. e4 {[%emt 0:00:02]} Qd2 {[%emt 0:00:01]} 29. Rc1 {[%emt 0:00:01]} h5 {[%emt 0:00:06]} 30. h4 {[%emt 0:00:01]} Ng4 {[%emt 0:00:03]} 31. Nc4 {[%emt 0:00:01]} Qd4 {[%emt 0:00:05]} 32. Qe2 {[%emt 0:00:02]} b5 {[%emt 0:00:02]} 33. Na3 {[%emt 0:00:01]} a6 {[%emt 0:00:01]} 34. Nc2 {[%emt 0:00:03]} Qd6 {[%emt 0:00:01]} 35. Ne3 {[%emt 0:00:01]} Nxe3+ {[%emt 0:00:02]} 36. Qxe3 {[%emt 0:00:02]} Qd4 {[%emt 0:00:01]} 37. Qf4 {[%emt 0:00:03]} c4 {[%emt 0:00:01]} 38. bxc4 {[%emt 0:00:02]} bxc4 {[%emt 0:00:01]} 39. Qc7+ Rd7 40. Qxc4 {[%emt 0:00:02]} Qb6 {[%emt 0:00:07]} 41. Qc6 {[%emt 0:00:01]} Qd4 {[%emt 0:00:03]} 42. Rc4 {[%emt 0:00:03]} Qd6 {[%emt 0:00:02]} 43. Qxd6 {[%emt 0:00:04]} Rxd6 {[%emt 0:00:01]} 44. Rc7+ {[%emt 0:00:01]} Kh6 {[%emt 0:00:01]} 45. Ra7 {[%emt 0:00:02]} g5 {[%emt 0:00:03]} 46. Kf3 {[%emt 0:00:02]} Rd3+ {[%emt 0:00:02]} 47. Ke2 {[%emt 0:00:01]} Ra3 {[%emt 0:00:01]} 48. Kf1 {[%emt 0:00:03]} Rxa2 49. Kg2 {[%emt 0:00:02]} g4 {[%emt 0:00:04]} 50. Rb7 {[%emt 0:00:03]} Ra1 {[%emt 0:00:02]} 51. Rb6 {[%emt 0:00:01]} Kg7 {[%emt 0:00:01]} 52. Rb7+ {[%emt 0:00:01]} Kg6 {[%emt 0:00:02]} 53. Rb6 {[%emt 0:00:01]} Kf7 {[%emt 0:00:04]} 54. Rb7+ {[%emt 0:00:00]} Ke6 {[%emt 0:00:03]} 55. Rh7 {[%emt 0:00:01]} Ra5 {[%emt 0:00:01]} 56. Rh8 {[%emt 0:00:04]} Re5 {[%emt 0:00:02]} 57. f3 {[%emt 0:00:04]} gxf3+ {[%emt 0:00:03]} 58. Kxf3 {[%emt 0:00:01]} a5 {[%emt 0:00:01]} 59. Kf4 {[%emt 0:00:01]} Rb5 {[%emt 0:00:02]} 60. Re8+ {[%emt 0:00:02]} Kf7 {[%emt 0:00:02]} 61. Ra8 {[%emt 0:00:01]} Kg6 {[%emt 0:00:02]} 62. Rg8+ {[%emt 0:00:01]} Kf7 {[%emt 0:00:01]} 63. Ra8 {[%emt 0:00:02]} Rc5 {[%emt 0:00:03]} 64. Ra6 {[%emt 0:00:01]} Kg6 {[%emt 0:00:01]} 65. Ra7 {[%emt 0:00:05]} Rb5 {[%emt 0:00:04]} 66. Ra6 {[%emt 0:00:01]} Rc5 {[%emt 0:00:01]} 67. g4 {[%emt 0:00:02]} hxg4 {[%emt 0:00:02]} 68. Kxg4 {[%emt 0:00:01]} Rc4 69. Kf3 {[%emt 0:00:03]} Ra4 {[%emt 0:00:06]} 70. e5 {[%emt 0:00:03]} Kf5 71. exf6 {[%emt 0:00:01]} Rxh4 {[%emt 0:00:03]} 72. f7 {[%emt 0:00:03]} Rh8 {[%emt 0:00:01]} 73. Rh6 {[%emt 0:00:02]} Rf8 {[%emt 0:00:02]} 74. Rh5+ {[%emt 0:00:01]} Kg6 {[%emt 0:00:00]} 75. Rxa5 {[%emt 0:00:01]} Rxf7+ 1/2-1/2

[Event "IMSA Blitz Women 2019"]
[Site "Hengshui"]
[Date "2019.05.18"]
[Round "8.1"]
[White "Stefanova, Antoaneta"]
[Black "Paehtz, Elisabeth"]
[Result "1/2-1/2"]
[ECO "A49"]
[WhiteElo "2470"]
[BlackElo "2470"]
[Annotator "RC"]
[PlyCount "123"]
[EventDate "2019.05.17"]
[EventType "blitz"]
[EventCountry "CHN"]
[SourceTitle "playchess.com"]
[Source "ChessBase"]
[SourceQuality "1"]
[TimeControl "180+2"]

1. d4 {[%emt 0:00:00]} Nf6 {[%emt 0:00:00]} 2. Nf3 {[%emt 0:00:04]} g6 {[%emt 0:00:01]} 3. g3 {[%emt 0:00:05]} Bg7 {[%emt 0:00:01]} 4. Bg2 {[%emt 0:00:00]} O-O {[%emt 0:00:02]} 5. O-O {[%emt 0:00:02]} d5 {[%emt 0:00:00]} 6. Be3 {[%emt 0:00:07]} c6 {[%emt 0:00:13]} 7. Qc1 {[%emt 0:00:03]} Re8 {[%emt 0:00:02]} 8. c4 {[%emt 0:00:15]} Nbd7 {[%emt 0:00:02]} 9. Rd1 {[%emt 0:00:06]} Nb6 {[%emt 0:00:02]} 10. Na3 {[%emt 0:00:07]} Be6 {[%emt 0:00:08]} 11. c5 {[%emt 0:00:06]} Nbd7 {[%emt 0:00:04]} 12. b4 {[%emt 0:00:04]} a6 {[%emt 0:00:01]} 13. Bh6 {[%emt 0:00:06]} Bh8 {[%emt 0:00:03]} 14. Nc2 {[%emt 0:00:15]} Ne4 {[%emt 0:00:06]} 15. h3 {[%emt 0:00:12]} f6 {[%emt 0:00:08]} 16. Nd2 {[%emt 0:00:17]} f5 {[%emt 0:00:10]} 17. Nxe4 {[%emt 0:00:23]} dxe4 {[%emt 0:00:03]} 18. f3 {[%emt 0:00:06]} exf3 {[%emt 0:00:04]} 19. Bxf3 {[%emt 0:00:12]} Nf6 {[%emt 0:00:03]} 20. a4 {[%emt 0:00:03]} Bd5 {[%emt 0:00:10]} 21. Ne3 {[%emt 0:00:11]} Bxf3 {[%emt 0:00:11]} 22. exf3 {[%emt 0:00:01]} Nd5 {[%emt 0:00:02]} 23. Rb1 {[%emt 0:00:09]} Bf6 {[%emt 0:00:12]} 24. Nc4 {[%emt 0:00:05]} Qc7 {[%emt 0:00:10]} 25. Kg2 {[%emt 0:00:04]} Rad8 {[%emt 0:00:03]} 26. b5 {[%emt 0:00:08]} axb5 {[%emt 0:00:07]} 27. axb5 {[%emt 0:00:00]} e5 {[%emt 0:00:05]} 28. bxc6 {[%emt 0:00:09]} bxc6 {[%emt 0:00:06]} 29. Nd6 {[%emt 0:00:01]} Rxd6 {[%emt 0:00:02]} 30. cxd6 {[%emt 0:00:01]} Qxd6 {[%emt 0:00:01]} 31. dxe5 {[%emt 0:00:02]} Bxe5 {[%emt 0:00:04]} 32. Re1 {[%emt 0:00:02]} Ra8 {[%emt 0:00:07]} 33. Re2 {[%emt 0:00:19]} Bxg3 {[%emt 0:00:09]} 34. Rb7 {[%emt 0:00:00]} Bf4 {[%emt 0:00:21]} 35. Qe1 {[%emt 0:00:13]} Bxh6 {[%emt 0:00:14]} 36. Re8+ {[%emt 0:00:01]} Rxe8 {[%emt 0:00:10]} 37. Qxe8+ {[%emt 0:00:02]} Qf8 {[%emt 0:00:01]} 38. Qxc6 {[%emt 0:00:04]} Nf4+ {[%emt 0:00:10]} 39. Kh2 {[%emt 0:00:02]} Nh5 {[%emt 0:00:05]} 40. Qd5+ {[%emt 0:00:04]} Kh8 {[%emt 0:00:05]} 41. Qe5+ {[%emt 0:00:03]} Bg7 {[%emt 0:00:05]} 42. Qc7 {[%emt 0:00:01]} Nf6 {[%emt 0:00:07]} 43. Rb8 {[%emt 0:00:03]} Ne8 {[%emt 0:00:01]} 44. Qf4 {[%emt 0:00:04]} Kg8 {[%emt 0:00:05]} 45. Rc8 {[%emt 0:00:02]} h6 {[%emt 0:00:02]} 46. Qc4+ {[%emt 0:00:02]} Kh7 {[%emt 0:00:02]} 47. Qe6 {[%emt 0:00:01]} Qa3 {[%emt 0:00:03]} 48. Rxe8 {[%emt 0:00:02]} Qb2+ {[%emt 0:00:02]} 49. Qe2 {[%emt 0:00:01]} Qd4 {[%emt 0:00:05]} 50. Kg2 {[%emt 0:00:01]} h5 {[%emt 0:00:02]} 51. Qe3 {[%emt 0:00:02]} Qb2+ {[%emt 0:00:01]} 52. Qe2 {[%emt 0:00:00]} Qd4 {[%emt 0:00:01]} 53. Re7 {[%emt 0:00:01]} Qf4 {[%emt 0:00:05]} 54. Qe3 {[%emt 0:00:02]} Qb4 {[%emt 0:00:05]} 55. Qe5 {[%emt 0:00:01]} Qd2+ {[%emt 0:00:02]} 56. Kg3 {[%emt 0:00:05]} Qg5+ {[%emt 0:00:02]} 57. Kh2 {[%emt 0:00:03]} Qd2+ {[%emt 0:00:01]} 58. Qe2 {[%emt 0:00:01]} Qf4+ {[%emt 0:00:02]} 59. Kg2 {[%emt 0:00:00]} Qg5+ {[%emt 0:00:00]} 60. Kh2 {[%emt 0:00:03]} Qf4+ {[%emt 0:00:01]} 61. Kg2 {[%emt 0:00:00]} Qg5+ {[%emt 0:00:01]} 62. Kh2 {[%emt 0:00:01]} 1/2-1/2